bitfinex/quotes_SOLUSD_20220212
["timestamp","ask_amount","ask_price","bid_price","bid_amount"]
[1644668518839,5.242,95.417,95.331,0.25]
[1644668519044,0.25,95.419,95.332,5.242]
[1644668519239,5.242,95.417,95.333,0.25]
[1644668519440,5.242,95.418,95.333,0.25]
[1644668519643,0.25,95.416,95.333,0.25]
[1644668519841,5.242,95.415,95.333,0.25]
[1644668520341,0.25,95.414,95.333,0.25]
[1644668520540,0.25,95.414,95.332,0.25]
[1644668521242,0.25,95.419,95.332,0.25]
[1644668521440,15.7344,95.42,95.333,5.242]
[1644668521642,5.242,95.435,95.333,7.62566791]
[1644668521842,5.242,95.439,95.334,2.63366791]
[1644668522041,5.242,95.439,95.335,5.241]
[1644668522243,5.241,95.456,95.336,0.25]
[1644668522441,5.241,95.456,95.35,12.64]
[1644668522645,5.241,95.456,95.36,15.7269]
[1644668522942,5.241,95.456,95.362,37.32793263]
[1644668523143,0.25,95.455,95.362,37.32793263]
[1644668523344,5.24,95.454,95.363,0.25]
[1644668523545,5.24,95.454,95.363,5.49]
[1644668523848,0.25,95.453,95.363,5.49]
[1644668524144,0.25,95.453,95.37,15.7257]
[1644668524344,0.25,95.453,95.371,5.49]
[1644668524548,15.7278,95.46,95.371,5.49]
[1644668524749,5.24,95.468,95.371,7.87366791]
[1644668524946,5.24,95.479,95.371,17.68366791]
[1644668525147,0.25,95.467,95.371,122.18366791]
[1644668525344,5.24,95.466,95.371,122.18366791]
[1644668525545,5.24,95.466,95.372,2.38366791]
[1644668525746,5.24,95.466,95.38,15.7248]
[1644668525946,24.7283,95.499,95.39,12.64]
[1644668525947,5.239,95.498,95.39,12.64]
[1644668526348,500.59571924,95.52,95.39,12.64]
[1644668526349,5.238,95.517,95.391,107.13366791]
[1644668526547,500.59571924,95.52,95.391,107.13366791]
[1644668526749,43.33743746,95.522,95.393,104.5]
[1644668526947,15.9985,95.551,95.393,112.86]
[1644668527145,15.9985,95.551,95.394,2.63366791]
[1644668527349,8.17666743,95.558,95.394,2.63366791]
[1644668527350,5.238,95.517,95.395,5.238]
[1644668527546,5.238,95.517,95.395,7.62166791]
[1644668527807,5.238,95.517,95.42,15.7179]
[1644668528046,5.238,95.517,95.431,38.93017137]
[1644668528047,0.25,95.516,95.431,38.93017137]
[1644668528252,5.237,95.515,95.432,5.487]
[1644668528648,0.25,95.514,95.432,5.487]
[1644668528847,5.237,95.513,95.44,15.7154]
[1644668529048,5.237,95.539,95.451,104.5]
[1644668529350,102.5371,95.57,95.452,0.25]
[1644668529351,5.235,95.558,95.452,0.25]
[1644668529548,5.235,95.569,95.452,7.86866791]
[1644668529749,5.235,95.569,95.453,2.38366791]
[1644668529950,15.7108,95.56,95.453,2.38366791]
[1644668530151,5.235,95.559,95.451,47.87219119]
[1644668530547,40.91106155,95.558,95.451,47.87219119]
[1644668530749,5.235,95.557,95.451,47.87219119]
[1644668531047,7.61866791,95.557,95.451,47.87219119]
[1644668531253,2.63366791,95.556,95.452,0.25]
[1644668531448,5.235,95.555,95.452,0.25]
[1644668531649,7.61866791,95.555,95.452,0.25]
[1644668531850,15.7189,95.53,95.452,0.25]
[1644668532147,5.236,95.529,95.452,0.25]
[1644668532346,0.25,95.529,95.452,0.25]
[1644668532950,5.235,95.539,95.452,0.25]
[1644668533248,5.235,95.559,95.506,0.60505836]
[1644668533649,5.232,95.568,95.506,0.60505836]
[1644668533851,15.7115,95.55,95.507,35.27228973]
[1644668534054,5.232,95.568,95.507,44.07228973]
[1644668534253,5.232,95.587,95.508,0.25]
[1644668534454,47.4794,95.588,95.508,0.25]
[1644668534652,5.232,95.587,95.508,0.25]
[1644668535553,2.38366791,95.586,95.507,35.27228973]
[1644668535754,5.232,95.585,95.507,35.27228973]
[1644668535954,0.48,95.581,95.507,35.27228973]
[1644668536156,5.232,95.58,95.507,35.27228973]
[1644668536355,2.38366791,95.58,95.507,35.27228973]
[1644668536556,15.7146,95.56,95.507,35.27228973]
[1644668536754,37.65668944,95.558,95.506,0.60505836]
[1644668536955,5.232,95.557,95.506,0.60505836]
[1644668537155,5.482,95.557,95.506,5.836e-05]
[1644668537357,2.38366791,95.556,95.506,5.836e-05]
[1644668537557,7.61566791,95.556,95.506,5.836e-05]
[1644668537763,0.25,95.555,95.506,5.836e-05]
[1644668537956,5.232,95.554,95.506,5.836e-05]
[1644668538358,0.25,95.553,95.506,5.836e-05]
[1644668538560,15.7145,95.55,95.506,5.836e-05]
[1644668538758,0.01994164,95.504,95.431,36.62083781]
[1644668538960,5.237,95.503,95.431,36.62083781]
[1644668539360,0.25,95.502,95.431,36.62083781]
[1644668539760,15.7202,95.5,95.432,0.25]
[1644668540160,0.25,95.499,95.431,36.62083781]
[1644668540364,5.487,95.499,95.431,36.62083781]
[1644668540561,2.38366791,95.498,95.431,36.62083781]
[1644668540762,2.38366791,95.498,95.396,5.237]
[1644668540763,5.487,95.497,95.396,5.237]
[1644668541062,15.7216,95.49,95.396,5.237]
[1644668541260,5.488,95.489,95.396,5.237]
[1644668541460,7.87166791,95.489,95.396,5.237]
[1644668541667,7.87166791,95.489,95.397,0.25]
[1644668541866,40.69724596,95.488,95.397,34.73264571]
[1644668542061,5.238,95.487,95.397,34.48264571]
[1644668542262,34.2323289,95.469,95.397,34.48264571]
[1644668542462,45.9023289,95.469,95.397,34.48264571]
[1644668542663,0.25,95.468,95.397,34.48264571]
[1644668542864,5.489,95.468,95.397,34.48264571]
[1644668543462,15.7287,95.45,95.397,34.48264571]
[1644668543862,0.25,95.449,95.398,0.25]
[1644668544063,0.25,95.449,95.397,34.48264571]
[1644668544263,5.239,95.448,95.397,34.48264571]
[1644668544663,0.25,95.447,95.397,34.48264571]
[1644668544863,5.239,95.446,95.397,34.48264571]
[1644668545263,0.25,95.445,95.397,34.48264571]
[1644668546063,0.25,95.445,95.398,0.25]
[1644668546268,0.25,95.448,95.398,0.25]
[1644668546866,15.7291,95.44,95.397,34.48264571]
[1644668547265,0.25,95.439,95.397,34.48264571]
[1644668548268,0.25,95.458,95.397,34.48264571]
[1644668548466,5.239,95.457,95.397,34.48264571]
[1644668548878,15.7289,95.44,95.397,34.48264571]
[1644668549870,0.25,95.456,95.397,34.48264571]
[1644668550072,0.25,95.456,95.398,0.25]
[1644668550271,0.25,95.458,95.398,0.25]
[1644668550771,0.25,95.459,95.398,0.25]
[1644668551973,5.239,95.458,95.398,0.25]
[1644668552375,5.239,95.459,95.399,2.38366791]
[1644668552574,5.239,95.492,95.4,12.64]
[1644668552774,5.238,95.503,95.4,12.89]
[1644668552975,5.238,95.503,95.401,2.38366791]
[1644668553279,5.238,95.503,95.402,0.25]
[1644668553475,15.7198,95.5,95.403,5.238]
[1644668553674,15.7198,95.5,95.402,0.25]
[1644668553675,5.238,95.499,95.402,0.25]
[1644668553876,5.238,95.499,95.404,0.25]
[1644668554076,83.5435085,95.507,95.403,5.238]
[1644668554278,3.18689685,95.506,95.404,0.25]
[1644668554476,15.7219,95.49,95.404,0.25]
[1644668554676,42.25089329,95.488,95.404,0.25]
[1644668554876,5.238,95.487,95.404,0.25]
[1644668555077,5.488,95.487,95.404,0.25]
[1644668555476,5.488,95.487,95.398,0.25]
[1644668555677,15.7252,95.47,95.398,0.25]
[1644668555879,37.81605387,95.468,95.398,0.25]
[1644668556281,12.64,95.46,95.398,0.25]
[1644668556485,5.239,95.459,95.398,0.25]
[1644668556685,5.489,95.459,95.398,0.25]
[1644668556883,5.489,95.459,95.373,0.25]
[1644668557078,5.489,95.459,95.372,5.238]
[1644668557280,15.73,95.45,95.372,5.238]
[1644668557479,5.24,95.449,95.372,5.238]
[1644668557679,42.25089329,95.448,95.372,5.238]
[1644668557878,5.24,95.447,95.372,5.238]
[1644668558122,7.87366791,95.447,95.3,12.64]
[1644668558416,15.7333,95.43,95.277,5.242]
[1644668558614,12.64,95.42,95.272,5.243]
[1644668558812,76.1387,95.419,95.272,5.243]
[1644668559014,37.81605387,95.418,95.273,38.15359402]
[1644668559218,5.494,95.417,95.274,5.494]
[1644668559624,2.38366791,95.416,95.275,2.38366791]
[1644668559818,15.7407,95.38,95.28,28.3791]
[1644668560018,15.7407,95.38,95.281,5.243]
[1644668560221,5.244,95.399,95.281,7.87666791]
[1644668560627,5.244,95.409,95.282,2.38366791]
[1644668560821,5.244,95.409,95.283,5.244]
[1644668561022,38.51615756,95.408,95.282,5.244]
[1644668561321,5.494,95.407,95.282,5.244]
[1644668561620,15.7366,95.4,95.282,5.244]
[1644668561820,5.494,95.399,95.281,5.244]
[1644668562218,5.494,95.399,95.282,0.25]
[1644668562420,5.494,95.399,95.283,5.244]
[1644668562818,5.494,95.399,95.284,0.25]
[1644668563022,5.494,95.399,95.285,5.244]
[1644668563221,5.494,95.399,95.286,0.25]
[1644668563520,15.7413,95.37,95.288,43.66323927]
[1644668563722,52.4709,95.39,95.29,104.5]
[1644668563922,0.25,95.399,95.291,5.244]
[1644668564121,12.64,95.42,95.291,5.494]
[1644668564419,12.64,95.43,95.292,106.88366791]
[1644668564719,69.65168979,95.405,95.294,104.5]
[1644668565122,69.65168979,95.405,95.295,2.63366791]
[1644668565321,15.7347,95.41,95.311,104.5]
[1644668565520,0.25,95.404,95.312,5.243]
[1644668565720,5.493,95.409,95.312,0.25]
[1644668566323,44.59621671,95.408,95.312,0.25]
[1644668566520,5.243,95.407,95.312,0.25]
[1644668566719,0.25,95.407,95.312,0.25]
[1644668566920,15.7347,95.41,95.313,2.38366791]
[1644668567120,5.243,95.409,95.313,2.38366791]
[1644668567321,5.242,95.429,95.315,104.5]
[1644668567520,5.242,95.429,95.314,5.492]
[1644668567521,5.242,95.429,95.317,104.5]
[1644668567720,5.242,95.429,95.33,12.64]
[1644668567919,5.242,95.429,95.332,36.92543914]
[1644668568119,37.16468792,95.428,95.333,5.242]
[1644668568319,15.7322,95.42,95.333,5.492]
[1644668568520,15.7322,95.42,95.333,0.25]
[1644668568722,5.492,95.419,95.333,0.25]
[1644668568923,9.31,95.419,95.332,36.92543914]
[1644668569121,5.242,95.418,95.291,5.242]
[1644668569320,5.242,95.418,95.26,2.96528081]
[1644668569321,0.25,95.417,95.304,0.25]
[1644668569521,5.243,95.416,95.304,0.25]
[1644668569725,0.25,95.415,95.304,0.25]
[1644668569923,15.7346,95.41,95.304,0.25]
[1644668570121,40.36337643,95.408,95.304,0.25]
[1644668570321,5.493,95.407,95.281,5.493]
[1644668570719,2.38366791,95.406,95.281,5.493]
[1644668570922,5.244,95.405,95.281,5.493]
[1644668571120,5.494,95.405,95.281,5.493]
[1644668571323,23.9202,95.404,95.281,5.493]
[1644668571531,5.244,95.403,95.281,5.493]
[1644668571728,15.7402,95.38,95.281,5.493]
[1644668571928,44.94757073,95.379,95.281,5.493]
[1644668572122,45.19757073,95.379,95.281,5.493]
[1644668573823,15.7405,95.37,95.281,5.493]
[1644668574026,5.245,95.369,95.281,0.25]
[1644668574223,5.495,95.369,95.281,0.25]
[1644668574424,5.245,95.369,95.281,0.25]
[1644668575229,0.25,95.368,95.282,5.245]
[1644668575426,15.7405,95.37,95.283,0.25]
[1644668575626,15.7405,95.37,95.284,5.245]
[1644668575828,15.7405,95.37,95.285,0.25]
[1644668576229,39.70357073,95.379,95.285,104.75]
[1644668576431,15.7385,95.39,95.285,104.75]
[1644668577034,0.25,95.389,95.29,15.7378]
[1644668577232,0.25,95.389,95.291,5.494]
[1644668577434,0.25,95.389,95.291,44.42114128]
[1644668577834,0.25,95.389,95.292,2.38366791]
[1644668578035,0.25,95.389,95.293,5.244]
[1644668578237,0.25,95.389,95.293,5.494]
[1644668579743,15.7385,95.39,95.294,104.5]
[1644668579941,15.7353,95.41,95.301,104.5]
[1644668580141,15.7353,95.41,95.311,104.5]
[1644668580341,5.244,95.413,95.311,104.5]
[1644668580342,5.243,95.426,95.312,0.25]
[1644668580743,36.43435077,95.425,95.312,48.29054223]
[1644668580941,5.242,95.424,95.312,53.53254223]
[1644668581542,0.25,95.423,95.312,53.53254223]
[1644668581745,15.7323,95.42,95.32,15.732]
[1644668581944,5.242,95.419,95.32,15.732]
[1644668582141,5.242,95.419,95.321,0.25]
[1644668582743,5.242,95.424,95.321,0.25]
[1644668583344,0.25,95.423,95.321,0.25]
[1644668583544,0.25,95.423,95.322,5.242]
[1644668583742,15.734,95.41,95.323,0.25]
[1644668583942,15.734,95.41,95.321,0.25]
[1644668584143,0.25,95.409,95.322,5.242]
[1644668584365,0.25,95.409,95.323,0.25]
[1644668584562,0.25,95.409,95.324,5.242]
[1644668584763,5.242,95.408,95.325,0.25]
[1644668584965,0.25,95.409,95.324,5.242]
[1644668585164,0.25,95.407,95.324,5.242]
[1644668585363,0.25,95.409,95.325,0.25]
[1644668585567,0.25,95.409,95.326,5.242]
[1644668585764,0.25,95.409,95.327,41.58657459]
[1644668585964,0.25,95.409,95.328,5.242]
[1644668586368,0.25,95.409,95.329,0.25]
[1644668588665,15.734,95.41,95.329,0.25]
[1644668589065,46.2302,95.429,95.329,0.25]
[1644668589265,5.242,95.426,95.33,5.242]
[1644668589468,5.242,95.426,95.328,0.25]
[1644668589665,66.24655915,95.427,95.328,5.492]
[1644668589865,0.25,95.425,95.328,104.75]
[1644668590070,0.25,95.425,95.33,104.5]
[1644668590267,0.25,95.425,95.331,5.492]
[1644668591071,0.25,95.426,95.331,5.492]
[1644668591669,5.242,95.425,95.331,5.492]
[1644668591871,0.25,95.426,95.331,5.492]
[1644668592072,0.25,95.424,95.331,5.492]
[1644668592272,0.25,95.426,95.331,5.492]
[1644668592672,5.242,95.425,95.331,0.25]
[1644668593072,0.25,95.424,95.333,104.5]
[1644668593274,0.25,95.424,95.334,0.25]
[1644668593477,15.7315,95.43,95.335,104.5]
[1644668593674,5.242,95.449,95.335,104.5]
[1644668593876,5.241,95.45,95.336,5.491]
[1644668594076,44.34850013,95.465,95.336,25.30212755]
[1644668594275,5.241,95.464,95.35,15.11]
[1644668594477,8.19058302,95.464,95.36,15.7252]
[1644668594779,5.241,95.464,95.361,5.49]
[1644668594975,5.241,95.464,95.361,0.25]
[1644668595376,15.7256,95.46,95.361,0.25]
[1644668595576,15.7256,95.46,95.36,15.11]
[1644668595577,5.24,95.459,95.351,36.44477267]
[1644668595776,5.49,95.459,95.351,36.44477267]
[1644668595982,0.25,95.459,95.351,36.44477267]
[1644668596177,5.24,95.458,95.351,36.44477267]
[1644668596583,0.25,95.457,95.351,36.44477267]
[1644668596777,1.47343699,95.45,95.351,36.44477267]
[1644668596977,1.47343699,95.45,95.352,0.25]
[1644668597178,0.25,95.449,95.352,0.25]
[1644668597779,0.25,95.449,95.36,15.7266]
[1644668597981,1.72343699,95.449,95.36,15.7266]
[1644668598188,1.72343699,95.449,95.361,0.25]
[1644668598383,0.25,95.449,95.362,5.24]
[1644668598582,0.25,95.449,95.351,36.44477267]
[1644668598583,1.47343699,95.442,95.351,36.44477267]
[1644668598784,15.7321,95.42,95.351,36.44477267]
[1644668599183,0.25,95.419,95.351,36.44477267]
[1644668599682,0.25,95.419,95.352,0.25]
[1644668600084,1.47343699,95.432,95.352,0.25]
[1644668600287,5.241,95.419,95.352,0.25]
[1644668600484,0.25,95.431,95.352,0.25]
[1644668601392,47.93784606,95.433,95.352,0.25]
[1644668601589,15.7305,95.43,95.352,0.25]
[1644668601787,0.25,95.429,95.352,0.25]
[1644668603418,15.7324,95.42,95.351,36.44477267]
[1644668603812,32.1291011,95.418,95.351,36.44477267]
[1644668604313,1.47343699,95.413,95.351,36.44477267]
[1644668604514,1.47343699,95.414,95.351,36.44477267]
[1644668604713,15.7345,95.41,95.351,36.44477267]
[1644668605113,0.25,95.409,95.351,36.44477267]
[1644668605316,5.242,95.408,95.351,36.44477267]
[1644668605513,1.47343699,95.408,95.351,36.44477267]
[1644668605713,0.25,95.407,95.351,36.44477267]
[1644668605916,1.72343699,95.407,95.351,36.44477267]
[1644668606114,5.242,95.406,95.351,36.44477267]
[1644668606314,15.7361,95.4,95.352,0.25]
[1644668606722,5.242,95.399,95.352,0.25]
[1644668606916,15.7361,95.4,95.352,0.25]
[1644668607116,5.242,95.399,95.351,36.44477267]
[1644668607315,15.7361,95.4,95.351,36.44477267]
[1644668607519,15.7361,95.4,95.352,0.25]
[1644668607716,0.25,95.399,95.352,0.25]
[1644668607919,5.242,95.398,95.351,36.44477267]
[1644668608117,0.25,95.399,95.351,36.44477267]
[1644668608317,0.25,95.399,95.352,0.25]
[1644668608517,5.242,95.398,95.352,0.25]
[1644668608721,0.25,95.397,95.352,0.25]
[1644668609119,1.47343699,95.408,95.352,0.25]
[1644668609919,49.05569671,95.434,95.352,0.25]
[1644668610125,49.05569671,95.434,95.353,2.38366791]
[1644668610421,22.6678,95.435,95.354,5.491]
[1644668610619,0.25,95.433,95.354,5.491]
[1644668610819,0.25,95.434,95.354,5.491]
[1644668611019,5.241,95.433,95.354,5.491]
[1644668611220,0.25,95.432,95.355,5.241]
[1644668611720,0.25,95.432,95.356,0.25]
[1644668612522,1.47917253,95.426,95.356,0.25]
[1644668612825,0.25,95.425,95.356,0.25]
[1644668613621,1.72917253,95.425,95.356,0.25]
[1644668613821,0.25,95.425,95.357,5.241]
[1644668614222,0.25,95.426,95.358,0.25]
[1644668614721,1.47917253,95.427,95.358,0.25]
[1644668614925,1.47917253,95.43,95.358,0.25]
[1644668615324,1.47917253,95.43,95.352,0.25]
[1644668615522,1.72917253,95.429,95.352,0.25]
[1644668615721,1.47917253,95.427,95.352,0.25]
[1644668616021,1.47917253,95.426,95.352,0.25]
[1644668616223,5.241,95.425,95.329,2.38366791]
[1644668616424,5.241,95.425,95.289,5.241]
[1644668616425,1.47917253,95.422,95.33,15.11]
[1644668616629,1.47917253,95.411,95.312,1.48345351]
[1644668616827,1.47917253,95.411,95.303,2.38366791]
[1644668616828,1.47917253,95.402,95.303,3.86712142]
[1644668617024,1.47917253,95.401,95.307,5.243]
[1644668617224,37.57850178,95.4,95.32,45.11225574]
[1644668617423,53.31430178,95.4,95.32,45.11225574]
[1644668617625,0.25,95.399,95.321,0.25]
[1644668619524,0.25,95.399,95.322,2.38366791]
[1644668619727,5.243,95.398,95.323,0.25]
[1644668619926,0.25,95.404,95.323,5.493]
[1644668620125,0.25,95.397,95.323,5.493]
[1644668620327,0.25,95.404,95.324,2.38366791]
[1644668620526,0.25,95.404,95.325,5.243]
[1644668620725,0.25,95.404,95.325,5.493]
[1644668620925,0.25,95.404,95.326,2.38366791]
[1644668621126,0.25,95.404,95.327,5.243]
[1644668621325,0.25,95.404,95.325,0.25]
[1644668621326,0.25,95.407,95.328,0.25]
[1644668621525,15.7354,95.4,95.326,5.243]
[1644668621726,0.25,95.399,95.327,0.25]
[1644668622427,15.7354,95.4,95.327,0.25]
[1644668622627,15.7354,95.4,95.328,2.38366791]
[1644668622831,15.7354,95.4,95.329,0.25]
[1644668623830,0.25,95.399,95.329,0.25]
[1644668624831,5.243,95.398,95.321,0.25]
[1644668625232,0.25,95.397,95.321,0.25]
[1644668625436,0.25,95.397,95.322,5.243]
[1644668625834,0.25,95.397,95.323,0.25]
[1644668626034,40.15414212,95.389,95.321,5.243]
[1644668626235,0.25,95.388,95.289,2.38366791]
[1644668626434,31.85326791,95.388,95.286,1.48345351]
[1644668626635,1.47917253,95.376,95.282,5.244]
[1644668626833,1.72917253,95.375,95.282,5.244]
[1644668627035,39.91280504,95.374,95.283,36.48964377]
[1644668627236,1.72917253,95.373,95.283,36.48964377]
[1644668627636,1.72917253,95.373,95.284,0.25]
[1644668627836,15.7421,95.37,95.284,0.25]
[1644668628137,5.245,95.369,95.283,36.48964377]
[1644668628336,54.9711,95.372,95.283,36.48964377]
[1644668628536,0.25,95.368,95.283,36.48964377]
[1644668628735,5.245,95.367,95.283,36.48964377]
[1644668629138,1.47917253,95.365,95.283,36.48964377]
[1644668629357,5.495,95.364,95.283,36.48964377]
[1644668629738,15.743,95.36,95.283,36.48964377]
[1644668629938,40.15414212,95.358,95.283,36.48964377]
[1644668630340,0.25,95.357,95.283,36.48964377]
[1644668630538,5.495,95.357,95.283,36.48964377]
[1644668630742,5.495,95.357,95.284,0.25]
[1644668631749,15.7457,95.34,95.284,0.25]
[1644668631955,22.8257,95.34,95.284,0.25]
[1644668632141,0.25,95.339,95.284,0.25]
[1644668632946,15.747,95.33,95.284,0.25]
[1644668633151,15.747,95.33,95.257,5.245]
[1644668633349,0.25,95.329,95.263,2.38366791]
[1644668633945,0.25,95.329,95.264,52.02648158]
[1644668634344,0.25,95.329,95.264,46.78048158]
[1644668634545,5.246,95.328,95.264,46.78048158]
[1644668634747,0.25,95.327,95.264,46.78048158]
[1644668634946,37.91273179,95.327,95.264,46.78048158]
[1644668635547,37.91273179,95.327,95.265,0.25]
[1644668637050,0.25,95.327,95.265,0.25]
[1644668637251,0.25,95.329,95.265,0.25]
[1644668638051,0.25,95.329,95.266,2.38366791]
[1644668638254,45.33512731,95.332,95.267,0.25]
[1644668638457,0.25,95.339,95.267,0.25]
[1644668638752,5.496,95.339,95.268,2.38366791]
[1644668639154,0.25,95.339,95.27,15.7438]
[1644668639353,5.246,95.373,95.271,0.25]
[1644668639561,5.246,95.385,95.272,104.5]
[1644668639758,47.8298,95.405,95.274,104.5]
[1644668639957,47.8298,95.405,95.275,5.244]
[1644668640159,47.8298,95.405,95.29,15.11]
[1644668640360,5.244,95.404,95.32,15.7348]
[1644668640560,47.8298,95.405,95.32,15.7348]
[1644668640561,41.73241119,95.403,95.322,47.41074173]
[1644668640761,41.73241119,95.403,95.323,5.493]
[1644668640964,41.73241119,95.403,95.323,7.87666791]
[1644668641361,41.73241119,95.403,95.324,2.38366791]
[1644668641562,5.243,95.402,95.324,2.38366791]
[1644668641763,15.7356,95.4,95.325,0.25]
[1644668641961,5.243,95.399,95.325,0.25]
[1644668642161,5.493,95.399,95.326,2.38366791]
[1644668642461,5.493,95.399,95.327,0.25]
[1644668642862,5.493,95.399,95.327,2.63366791]
[1644668644261,0.25,95.399,95.327,2.63366791]
[1644668644786,47.8298,95.405,95.33,15.734]
[1644668644995,5.243,95.418,95.33,30.844]
[1644668645189,15.7334,95.42,95.33,30.844]
[1644668645190,15.7334,95.42,95.331,7.87566791]
[1644668645583,15.7334,95.42,95.332,2.38366791]
[1644668645783,42.21869463,95.419,95.333,5.492]
[1644668645984,15.7353,95.41,95.331,0.25]
[1644668646184,5.242,95.409,95.331,0.25]
[1644668646392,1.47917253,95.415,95.334,2.38366791]
[1644668646588,188.93,95.52,95.334,2.38366791]
[1644668646589,1.47917253,95.459,95.334,2.38366791]
[1644668646788,1.47917253,95.459,95.335,69.98025964]
[1644668647186,1.47917253,95.461,95.336,2.38366791]
[1644668647383,35.2829404,95.458,95.35,15.11]
[1644668647583,15.7296,95.44,95.36,15.7293]
[1644668647787,15.7296,95.44,95.361,5.49]
[1644668648083,5.241,95.439,95.361,0.25]
[1644668648487,1.47917253,95.456,95.361,0.25]
[1644668648684,5.241,95.438,95.361,0.25]
[1644668648885,5.241,95.438,95.351,34.65235172]
[1644668648886,38.90351153,95.429,95.352,0.25]
[1644668649285,5.491,95.428,95.352,0.25]
[1644668650688,0.25,95.428,95.352,0.25]
[1644668650887,15.7328,95.42,95.352,0.25]
[1644668651285,0.25,95.419,95.352,0.25]
[1644668655691,5.241,95.418,95.352,0.25]
[1644668656192,0.25,95.417,95.352,0.25]
[1644668656990,15.7342,95.41,95.352,0.25]
[1644668657190,0.25,95.409,95.352,0.25]
[1644668660993,22.7626,95.427,95.352,0.25]
[1644668661193,22.7626,95.427,95.352,7.87466791]
[1644668661800,15.7322,95.43,95.352,7.87466791]
[1644668662194,0.25,95.429,95.352,7.87466791]
[1644668662597,0.25,95.429,95.36,15.7293]
[1644668662795,0.25,95.429,95.361,0.25]
[1644668662995,0.25,95.429,95.361,2.63366791]
[1644668663200,5.241,95.443,95.362,2.38366791]
[1644668663398,5.241,95.457,95.363,104.5]
[1644668663599,46.8257,95.458,95.371,104.5]
[1644668663796,5.24,95.473,95.38,15.11]
[1644668663996,5.24,95.473,95.382,39.8072289]
[1644668664203,5.24,95.473,95.383,104.75]
[1644668664401,5.24,95.473,95.383,109.989]
[1644668664598,46.9869,95.497,95.384,2.38366791]
[1644668664800,46.9869,95.497,95.385,5.488]
[1644668664998,46.9869,95.497,95.42,15.719]
[1644668665197,5.237,95.496,95.421,38.84206996]
[1644668665396,46.9869,95.497,95.422,5.237]
[1644668665599,0.25,95.495,95.422,16.337]
[1644668665798,5.487,95.496,95.423,0.25]
[1644668666300,41.51613669,95.495,95.423,0.25]
[1644668666501,15.7214,95.49,95.423,0.25]
[1644668666701,0.25,95.489,95.422,0.25]
[1644668668804,0.25,95.496,95.422,0.25]
[1644668669003,5.237,95.496,95.43,15.7177]
[1644668669202,5.237,95.507,95.431,0.25]
[1644668669604,5.237,95.509,95.431,0.25]
[1644668670310,0.25,95.508,95.431,0.25]
[1644668670503,5.237,95.507,95.431,0.25]
[1644668670704,0.25,95.506,95.431,0.25]
[1644668670904,5.237,95.507,95.44,15.7159]
[1644668671106,64.3249,95.53,95.44,15.7159]
[1644668671107,1.47917253,95.522,95.44,40.2559]
[1644668671307,48.609,95.53,95.441,7.86966791]